fUSD/lending_fUSD_20240921
["ID","MTS","AMOUNT","RATE_DAILY","PERIOD"]
[338694780,1726881033147,-277.79,0.00013657,2]
[338694781,1726881033156,-2751.0,0.00013699,2]
[338694782,1726881033166,-150.0,0.00013699,2]
[338694783,1726881033175,-200.0,0.00013699,2]
[338694784,1726881033185,-1201.35,0.00013699,2]
[338694785,1726881033195,-1250.0,0.000137,2]
[338694786,1726881033205,-3540.72454155,0.00013761,2]
[338694787,1726881033215,-1511.47,0.0001377,2]
[338694788,1726881033225,-2000.0,0.00013788,2]
[338694789,1726881033235,-500.0,0.00013788,2]
[338694790,1726881033245,-2000.0,0.00013788,2]
[338694791,1726881033254,-500.0,0.00013789,2]
[338694792,1726881033264,-2000.0,0.00013789,2]
[338694793,1726881033274,-2000.0,0.00013789,2]
[338694794,1726881033284,-500.0,0.00013789,2]
[338694795,1726881033294,-200.0,0.00013789,2]
[338694796,1726881033303,-2000.0,0.00013799,2]
[338694797,1726881033313,-396.44,0.00013803,2]
[338694798,1726881033387,-181.6918617,0.00013895,2]
[338694799,1726881033397,-8398.5653416,0.00013895,2]
[338694800,1726881033407,-1505.2578599,0.00013895,2]
[338694801,1726881033417,-894.79043523,0.00013899,2]
[338694802,1726881033426,-200.0,0.000139,2]
[338694803,1726881033436,-150.0,0.000139,2]
[338694804,1726881033445,-7133.15645269,0.000139,2]
[338694805,1726881033454,-2500.0,0.000139,2]
[338694806,1726881033464,-500.0,0.00013904,2]
[338694807,1726881033473,-600.0,0.00013914,2]
[338694808,1726881033483,-2675.92,0.00013934,7]
[338694809,1726881033492,-2675.92,0.00013934,7]
[338694810,1726881033501,-209.0,0.0001396,2]
[338694811,1726881033511,-204.0,0.0001396,2]
[338694812,1726881033520,-400.0,0.00013962,2]
[338694813,1726881033530,-255.0,0.00013986,2]
[338694814,1726881033540,-2270.0,0.00013999,2]
[338694815,1726881033549,-915.8611465,0.00014,4]
[338694816,1726881033559,-63677.05672757,0.00014,2]
[338694817,1726881033568,-500.0,0.00014,5]
[338694818,1726881033577,-5000.0,0.00014,2]
[338694819,1726881033587,-5023.0,0.00014,2]
[338694820,1726881033596,-7133.15645268,0.00014011,2]
[338694821,1726881033605,-150.0,0.00014059,2]
[338694822,1726881033615,-310.92644456,0.00014088,2]
[338694823,1726881033624,-1001.08,0.00014115,2]
[338694824,1726881033633,-7133.15645268,0.00014122,2]
[338694825,1726881033643,-307.0,0.00014125,2]
[338694826,1726881033652,-420.0,0.00014125,2]
[338694827,1726881033662,-209.0,0.0001413,2]
[338694828,1726881033671,-204.0,0.0001413,2]
[338694829,1726881033680,-277.79,0.0001414,2]
[338694830,1726881033690,-164.52047892,0.0001414,2]
[338694831,1726881033699,-24532.1190824,0.00014157,2]
[338694832,1726881033708,-122660.595412,0.00014168,2]
[338694833,1726881033718,-171.08649104,0.00014168,2]
[338694834,1726881033727,-152.67,0.00014168,2]
[338694835,1726881033736,-16743.0,0.00014178,2]
[338694836,1726881033746,-226836.0,0.00014178,2]
[338694837,1726881033755,-33009.4628942,0.00014188,2]
[338694838,1726881033764,-24532.1190824,0.00014198,2]
[338694839,1726881033774,-150.0,0.00014198,2]
[338694840,1726881033784,-4000.0,0.000142,6]
[338694841,1726881033794,-5000.0,0.000142,2]
[338694842,1726881033803,-5000.0,0.000142,2]
[338694843,1726881033812,-376.1953222,0.00014205,2]
[338694844,1726881034328,-111.8046778,0.00014205,2]
[338694845,1726881034337,-2675.92,0.00014208,7]
[338694846,1726881034349,-2675.92,0.00014208,7]
[338694847,1726881034358,-24532.1190824,0.0001422,2]
[338694848,1726881034368,-21285.56336483,0.0001422,2]
[338694849,1726881034403,-737.5985368,0.0001422,2]
[338694850,1726881034414,-462.53216332,0.0001422,2]
[338694851,1726881034427,-883.54995,0.0001422,2]
[338694852,1726881034438,-846.47,0.0001422,2]
[338694853,1726881034449,-350.2299999,0.0001422,2]
[338694854,1726881034460,-8443.51887935,0.0001422,2]
[338694855,1726881034470,-2534.20252765,0.00014233,2]
[338694856,1726881034498,-500.0,0.00014197,2]
[338694857,1726881034508,-138.85454997,0.00014197,2]
[338694858,1726881034519,-361.14545003,0.00014197,2]
[338694859,1726881034530,-375.91090728,0.00014197,2]
[338694860,1726881034539,-4598.95392503,0.00014233,2]
[338694861,1726881034548,-24532.1190824,0.0001424,2]
[338694862,1726881034558,-922.735545,0.00014247,2]
[338694863,1726881034567,-11012.42293399,0.0001425,5]
[338694864,1726881034576,-5000.65852,0.0001425,2]
[338694865,1726881034586,-189.15284033,0.0001429,2]
[338694866,1726881034595,-310.92644453,0.00014291,2]
[338694867,1726881034604,-150.0,0.00014298,2]
[338694868,1726881034614,-209.0,0.0001431,2]
[338694869,1726881034624,-204.0,0.0001431,2]
[338694870,1726881034633,-159.38136408,0.0001432,2]
[338694871,1726881034643,-7133.15645268,0.00014344,2]
[338694872,1726881034652,-24532.1190824,0.00014351,2]
[338694873,1726881034661,-33009.4628942,0.00014351,2]
[338694874,1726881034671,-275.52126727,0.00014373,2]
[338694875,1726881034680,-33009.4628942,0.0001438,2]
[338694876,1726881034690,-159.99729233,0.00014384,2]
[338694877,1726881034699,-1201.35,0.00014384,2]
[338694878,1726881034709,-49064.2381647,0.0001439,2]
[338694879,1726881034719,-5398.19577023,0.0001439,2]
[338694880,1726881034731,-27611.26712397,0.0001439,2]
[338694881,1726881034741,-1251.7957953,0.00014391,2]
[338694882,1726881034750,-150.0,0.00014398,2]
[338694883,1726881034760,-189.4818783,0.000144,2]
[338694884,1726881034770,-1892.02856802,0.000144,2]
[338694885,1726881034782,-480.40003003,0.000144,2]
[338694886,1726881034807,-4780.75614506,0.000144,2]
[338694887,1726881034817,-6128.30760025,0.000144,2]
[338694888,1726881034830,-1024.87714285,0.000144,2]
[338694889,1726881034840,-7153.1847431,0.000144,2]
[338694890,1726881034849,-3328.65747724,0.000144,2]
[338694891,1726881034862,-3201.75970489,0.000144,2]
[338694892,1726881034873,-622.76756097,0.000144,2]
[338694893,1726881034883,-7153.1847431,0.000144,2]
[338694894,1726881034892,-2954.59771061,0.000144,2]
[338694895,1726881034905,-1446.52809512,0.000144,2]
[338694896,1726881038151,-1080.0,0.00012951,2]
[338694897,1726881038162,-2752.05893737,0.000144,2]
[338694898,1726881038172,-3071.12787926,0.000144,2]
[338694899,1726881038301,-4082.05686384,0.000144,2]
[338694900,1726881038311,-7153.1847431,0.000144,2]
[338694901,1726881038320,-7153.1847431,0.000144,2]
[338694902,1726881038330,-7153.1847431,0.000144,2]
[338694903,1726881038341,-6101.36647454,0.000144,2]
[338694904,1726881038355,-1051.81826856,0.000144,2]
[338694905,1726881038365,-7153.1847431,0.000144,2]
[338694906,1726881038376,-236.11798508,0.000144,2]
[338694907,1726881038386,-24532.1190824,0.000144,2]
[338694908,1726881038396,-33009.4628942,0.000144,2]
[338694909,1726881038406,-150.0,0.0001442,2]
[338694910,1726881038416,-588.0,0.0001442,2]
[338694911,1726881038426,-168.75887935,0.00014421,2]
[338694912,1726881038436,-6982.351917,0.00014441,2]
[338694913,1726881038446,-24532.1190824,0.00014451,2]
[338694914,1726881038456,-152.0,0.00014455,3]
[338694915,1726881038466,-7133.15645268,0.00014456,2]
[338694916,1726881038476,-23880.01108043,0.00014461,2]
[338694917,1726881038486,-159.99729233,0.00014466,2]
[338694918,1726881038496,-24532.1190824,0.0001447,2]
[338694919,1726881038505,-33009.4628942,0.0001447,2]
[338694920,1726881038515,-209.0,0.0001448,2]
[338694921,1726881038761,-204.0,0.0001448,2]
[338694922,1726881038796,-24532.1190824,0.0001448,2]
[338694923,1726881038812,-33009.4628942,0.0001448,2]
[338694924,1726881038822,-2675.92,0.00014481,7]
[338694925,1726881038831,-2675.92,0.00014481,7]
[338694926,1726881038842,-24532.1190824,0.0001449,2]
[338694927,1726881038851,-152.67,0.00014491,2]
[338694928,1726881038860,-310.92644453,0.00014494,2]
[338694929,1726881038870,-150.0,0.00014498,2]
[338694930,1726881038880,-199.0,0.000145,2]
[338694931,1726881038889,-30000.0,0.000145,2]
[338694932,1726881038901,-16026.99048871,0.000145,2]
[338694933,1726881038911,-500.0,0.000145,6]
[338694934,1726881038921,-5000.0,0.000145,6]
[338694935,1726881038931,-24532.1190824,0.000145,2]
[338694936,1726881038940,-33009.4628942,0.000145,2]
[338694937,1726881038950,-159.99729233,0.00014521,2]
[338694938,1726881038961,-6628.3,0.00014521,2]
[338694939,1726881038970,-6847.14963783,0.00014544,2]
[338694940,1726881038979,-7133.15645268,0.00014567,2]
[338694941,1726881038989,-24532.1190824,0.0001457,2]
[338694942,1726881038999,-33009.4628942,0.0001457,2]
[338694943,1726881039008,-2728.70888862,0.00014578,7]
[338694944,1726881039017,-1000.0,0.00014599,8]
[338694945,1726881039027,-526.48493741,0.00014599,2]
[338694946,1726881039036,-500.0,0.000146,2]
[338694947,1726881039048,-500.0,0.000146,2]
[338694948,1726881039058,-500.0,0.000146,2]
[338694949,1726881039067,-500.0,0.000146,2]
[338694950,1726881039077,-500.0,0.000146,2]
[338694951,1726881039087,-500.0,0.000146,2]
[338694952,1726881039096,-332.55372387,0.000146,2]
[338694953,1726881039106,-209.0,0.000146,2]
[338694954,1726881039115,-209.0,0.000146,2]
[338694955,1726881039124,-204.0,0.000146,2]
[338694956,1726881039135,-204.0,0.000146,2]
[338694957,1726881039144,-204.0,0.000146,2]
[338694958,1726881039154,-203.0,0.000146,2]
[338694959,1726881039163,-233.0,0.000146,2]
[338694960,1726881039173,-203.0,0.000146,2]
[338694961,1726881039182,-159.99729233,0.00014603,2]
[338694962,1726881039192,-2000.0,0.00014621,2]
[338694963,1726881039201,-277.79,0.00014623,2]
[338694964,1726881039211,-24532.1190824,0.0001464,2]
[338694965,1726881039220,-33009.4628942,0.0001464,2]
[338694966,1726881039230,-24532.1190824,0.00014649,2]
[338694967,1726881039239,-209.0,0.0001465,2]
[338694968,1726881039248,-204.0,0.0001465,2]
[338694969,1726881039257,-159.99729233,0.00014658,2]
[338694970,1726881039266,-25220.17276838,0.00014659,2]
[338694971,1726881039279,-461.545,0.00014659,2]
[338694972,1726881039302,-288.23295383,0.00014659,2]
[338694973,1726881039315,-7039.51217199,0.00014659,2]
[338694974,1726881039325,-20269.86066837,0.00014659,2]
[338694977,1726881040146,-400.07483383,0.00014659,2]
[338694978,1726881040158,-745.83403878,0.00014659,2]
[338694979,1726881040169,-5464.19112739,0.00014659,2]
[338694980,1726881040181,-978.94261518,0.00014659,2]
[338694981,1726881040214,-735.18578894,0.00014659,2]
[338694982,1726881040225,-381.87000001,0.00014659,2]
[338695051,1726881043443,-7084.32102208,0.00014659,2]
[338695052,1726881043454,-5161.16,0.00014659,2]
[338695059,1726881046134,-7842.79807012,0.00014659,2]
[338695060,1726881046143,-10855.30192988,0.00014659,2]
[338695061,1726881046154,-22154.16096432,0.00014659,2]
[338695062,1726881046163,-27301.1175255,0.00014669,2]
[338695063,1726881046195,-2062.63999954,0.00014669,2]
[338695064,1726881046209,-2398.4,0.00014669,2]
[338695065,1726881046256,-1194.27246,0.00014669,2]
[338695066,1726881046274,-325.22958626,0.00014669,2]
[338695067,1726881046323,-9318.32713459,0.00014669,2]
[338695070,1726881050700,500.0,0.00011164,2]
[338695071,1726881059410,500.0,0.00011164,2]
[338695072,1726881176909,323.56,0.00011804,2]
[338695073,1726881182782,158.01,0.00010959,2]
[338695076,1726881445260,5800.0,0.00011604,2]
[338695077,1726881468574,5800.0,0.00011595,2]
[338695078,1726881491388,5800.0,0.00011587,2]
[338695079,1726881514258,5800.0,0.00011578,2]
[338695080,1726881541861,500.0,0.00011164,2]
[338695081,1726881558428,400.0,0.00011604,2]
[338695082,1726881562602,500.0,0.00011164,2]
[338695083,1726881656698,1050.0,0.00011,2]
[338695084,1726881742576,160.87,0.00010959,2]
[338695085,1726881821076,324.37,0.00011195,2]
[338695089,1726882040135,-235.45124965,0.00012689,2]
[338695090,1726882040156,-166.04717074,0.00012912,2]
[338695091,1726882040177,-924.56695111,0.00012912,2]
[338695092,1726882053055,749.49,0.00010959,2]
[338695100,1726882232422,-237.86,0.00012366,2]
[338695101,1726882232432,-388.56675624,0.00012471,2]
[338695102,1726882232443,-291.65,0.00012471,2]
[338695106,1726882232553,-319.78324376,0.00012471,2]
[338695107,1726882232562,-474.77779558,0.0001277,2]
[338695108,1726882232573,-415.22091175,0.0001277,2]
[338695109,1726882232685,-2204.70442374,0.0001277,2]
[338695110,1726882232696,-1593.28569715,0.0001277,2]
[338695111,1726882232707,-207.014032,0.0001277,2]
[338695112,1726882232716,-664.45,0.00012845,2]
[338695113,1726882232727,-1023.79087286,0.000129,2]
[338695114,1726882235000,-1476.20912714,0.000129,2]
[338695115,1726882235009,-166.04717073,0.000129,2]
[338695116,1726882235019,-2441.63000972,0.000129,2]
[338695117,1726882235032,-418.14079028,0.000129,2]
[338695118,1726882235041,-1215.37998473,0.00012912,2]
[338695119,1726882235051,-163.34,0.00012914,2]
[338695120,1726882235060,-503.36012754,0.00012973,2]
[338695121,1726882235070,-250.0,0.00012986,2]
[338695122,1726882235079,-958.76909745,0.00012986,2]
[338695123,1726882235091,-41.23090255,0.00012986,2]
[338695124,1726882235101,-153.71,0.0001299,2]
[338695125,1726882235111,-150.0,0.00012999,2]
[338695126,1726882235120,-718.29,0.00013,2]
[338695127,1726882235130,-1010.7,0.00013,2]
[338695128,1726882235139,-26989.56909745,0.00013,2]
[338695129,1726882237200,511.63450648,0.00011164,2]
[338695131,1726882238670,-917.13170537,0.00013,2]
[338695305,1726882240637,-4766.80099192,0.00013,2]
[338695307,1726882240649,-573.16626518,0.00013,2]
[338695309,1726882240661,-1248.71,0.00013,2]
[338695320,1726882240764,-45785.26368409,0.00013,2]
[338695504,1726882242671,-540421.24893527,0.00013,2]
[338695560,1726882243272,-165239.46451926,0.00013,2]
[338695662,1726882244211,-334.93,0.00012759,2]
[338695664,1726882244221,-12572.71513513,0.00013,2]
[338695666,1726882244233,-1426.51565995,0.00013,2]
[338695669,1726882244244,-2488.55910474,0.00013,2]
[338695671,1726882244256,-993.56644484,0.00013,2]
[338695674,1726882244275,-6881.49059108,0.00013,2]
[338695676,1726882244287,-482.99999997,0.00013,2]
[338695679,1726882244311,-9225.0,0.00013,2]
[338695682,1726882244323,-438.44803951,0.00013,2]
[338695684,1726882244335,-2151.55353911,0.00013,2]
[338695902,1726882246492,-41649.24081855,0.00013,2]
[338695903,1726882246502,-24377.30661184,0.00013,2]
[338695905,1726882246511,-688.34306035,0.00013,2]
[338695907,1726882246520,-560.76,0.00013012,2]
[338695909,1726882246529,-150.0,0.00013069,2]
[338695911,1726882246539,-499.99,0.00013069,2]
[338695913,1726882246548,-261.0233,0.00013086,2]
[338695915,1726882246557,-1218.31,0.00013086,2]
[338695917,1726882246566,-5192.15,0.0001312,2]
[338695919,1726882246575,-2139.9469358,0.00013133,2]
[338695921,1726882246584,-226.4,0.00013184,2]
[338695923,1726882246593,-1903.0,0.00013186,2]
[338695924,1726882246602,-553.0,0.00013186,2]
[338695926,1726882246611,-806.0,0.00013186,2]
[338695928,1726882246620,-1913.0,0.00013186,2]
[338695930,1726882246629,-248.0,0.00013186,2]
[338695932,1726882246638,-3346.0,0.00013186,2]
[338695934,1726882246647,-1549.0,0.00013186,2]
[338695936,1726882246656,-5867.0,0.00013186,2]
[338695937,1726882246665,-1262.0,0.00013186,2]
[338695939,1726882246675,-625.0,0.00013186,2]
[338695941,1726882246685,-150.767,0.00013186,2]
[338695943,1726882246694,-448.0,0.00013186,2]
[338695945,1726882246704,-1147.0,0.00013186,2]
[338695947,1726882246713,-13490.0,0.00013186,2]
[338695949,1726882246722,-558.0,0.00013186,2]
[338695951,1726882246732,-425.53,0.000132,2]
[338695953,1726882246742,-809.0,0.00013203,2]
[338695955,1726882246750,-853.23,0.0001326,2]
[338695957,1726882246758,-519.9,0.000133,2]
[338695959,1726882246766,-2139.9469358,0.00013354,2]
[338695961,1726882246775,-150.0,0.00013389,2]
[338695963,1726882246784,-150.0,0.00013389,2]
[338695965,1726882246794,-151.0,0.00013434,2]
[338695967,1726882246803,-324.37,0.00013459,2]
[338695969,1726882246812,-2139.9469358,0.00013575,2]
[338695971,1726882246821,-442.757,0.000136,2]
[338695973,1726882246830,-184.132,0.000136,2]
[338695975,1726882246839,-154.429,0.00013669,2]
[338695977,1726882246849,-759.2,0.00013699,2]
[338695979,1726882246858,-150.0,0.00013699,2]
[338695981,1726882246867,-200.0,0.00013699,2]
[338695983,1726882246879,-2751.0,0.00013699,2]
[338695985,1726882246889,-1250.0,0.000137,2]
[338695987,1726882246899,-2139.9469358,0.00013796,2]
[338695989,1726882246909,-506.0,0.000138,2]
[338695991,1726882246918,-334713.30144,0.000138,2]
[338695993,1726882246930,-753.33,0.00013816,2]
[338695995,1726882246939,-422.74,0.00013816,2]
[338695997,1726882246948,-753.33,0.00013816,2]
[338695999,1726882246958,-422.74,0.00013816,2]
[338696000,1726882246967,-753.33,0.00013816,2]
[338696002,1726882246976,-422.74,0.00013816,2]
[338696004,1726882246987,-188.17,0.00013816,2]
[338696006,1726882246995,-753.33,0.00013816,2]
[338696008,1726882247004,-753.33,0.00013816,2]
[338696010,1726882247013,-753.33,0.00013816,2]
[338696012,1726882247023,-753.33,0.00013816,2]
[338696014,1726882247032,-753.33,0.00013816,2]
[338696016,1726882247042,-180.39,0.00013816,2]
[338696018,1726882247051,-500.0,0.000139,2]
[338696020,1726882247061,-359.0,0.000139,2]
[338696022,1726882247071,-107450.3159029,0.000139,2]
[338696026,1726882247083,-5528.4785558,0.000139,2]
[338696028,1726882247095,-1615.08851779,0.000139,2]
[338696030,1726882247106,-4038.52621349,0.000139,2]
[338696033,1726882247125,-3034.768484,0.000139,2]
[338696037,1726882247157,-520.462013,0.000139,2]
[338696039,1726882247168,-3893.8786,0.000139,2]
[338696042,1726882247180,-12460.6,0.000139,2]
[338696044,1726882247191,-5102.84800258,0.000139,2]
[338696050,1726882247242,-879.76000086,0.000139,2]
[338697401,1726882274597,500.0,0.00011164,2]
[338697410,1726882333113,500.0,0.00011164,2]
[338697414,1726882369389,269.21645423,6.781e-05,7]
[338697415,1726882383297,500.0,0.00011164,2]
[338697416,1726882402619,309.73,0.00011337,2]
[338697417,1726882425756,5806.55,0.00012,2]
[338697419,1726882534956,169.99,0.00010959,2]
[338697421,1726882634792,2000.0,0.00012,2]
[338697442,1726882919710,196.86222122,0.00012,2]
[338697444,1726883245112,-665.87019281,0.00012545,2]
[338697446,1726883341973,357.08,0.0001113,2]
[338697453,1726883431702,-201.52535858,0.00012544,2]
[338697454,1726883431711,-193.54734706,0.00012544,2]
[338697455,1726883431721,-5820.5457,0.00012545,2]
[338697456,1726883431731,-300.0,0.00012644,2]
[338697457,1726883431740,-14772.146,0.00012645,2]
[338697458,1726883431750,-150.0,0.00012679,2]
[338697459,1726883431759,-7521.28646194,0.0001268,2]
[338697460,1726883431770,-5038.7342473,0.0001268,2]
[338697461,1726883431781,-324.0102751,0.0001268,2]
[338697462,1726883431818,-3641.40814063,0.0001268,2]
[338697463,1726883431829,-479.16,0.0001268,2]
[338697464,1726883431840,-1247.87092102,0.0001268,2]
[338697465,1726883431851,-3479.16924216,0.0001268,2]
[338697466,1726883431862,-555.14114462,0.0001268,2]
[338697467,1726883431939,-636.09200587,0.0001268,2]
[338697469,1726883431951,-32779.68225824,0.0001268,2]
[338697471,1726883431960,-578.97,0.00012842,2]
[338697473,1726883431970,-23900.0,0.00012888,2]
[338697475,1726883431979,-200.0,0.00012894,2]
[338697477,1726883431988,-250.0,0.00012898,2]
[338697479,1726883431997,-250.0,0.00012907,2]
[338697480,1726883432006,-150.0,0.00012948,2]
[338697481,1726883432016,-500.0,0.00012949,2]
[338697482,1726883432025,-499.99,0.00012959,2]
[338697483,1726883432034,-150.99,0.00012959,2]
[338697484,1726883432043,-16465.68,0.00012959,2]
[338697485,1726883432053,-150.0,0.00012959,2]
[338697486,1726883432062,-302.28,0.00012968,2]
[338697488,1726883432072,-1000.0,0.00012986,2]
[338697490,1726883432081,-1000.0,0.00012987,2]
[338697491,1726883432090,-250.0,0.00012988,2]
[338697492,1726883432099,-647.22,0.00013,2]
[338697493,1726883432108,-268.93581484,0.00013,2]
[338697494,1726883432117,-1252.4,0.00013,2]
[338697495,1726883432126,-1320.36,0.00013,2]
[338697496,1726883432136,-1006.08,0.00013,2]
[338697497,1726883432145,-4564.88,0.00013042,2]
[338697498,1726883432154,-193.47,0.0001309,2]
[338697499,1726883432163,-183.84886427,0.00013193,2]
[338697500,1726883432173,-1089.481306,0.00013193,2]
[338697501,1726883432181,-8407.7393,0.00013193,2]
[338697502,1726883432191,-2899.5558,0.00013193,2]
[338697503,1726883432201,-200.0,0.000132,2]
[338697504,1726883432214,-150.0,0.0001329,2]
[338697505,1726883432223,-153.43353106,0.0001329,2]
[338697506,1726883432232,-150.0,0.0001329,2]
[338697507,1726883432242,-150.0,0.0001329,2]
[338697508,1726883432251,-151.15059163,0.0001329,2]
[338697509,1726883432260,-625.0,0.00013293,2]
[338697510,1726883432269,-1549.0,0.00013293,2]
[338697511,1726883432278,-448.0,0.00013293,2]
[338697512,1726883432288,-1262.0,0.00013293,2]
[338697513,1726883432298,-809.0,0.00013293,2]
[338697514,1726883432307,-933.0,0.00013293,2]
[338697515,1726883432316,-558.0,0.00013293,2]
[338697516,1726883432325,-554.45,0.00013293,2]
[338697517,1726883432335,-1903.0,0.00013293,2]
[338697518,1726883432344,-248.657,0.00013293,2]
[338697519,1726883432353,-1913.0,0.00013293,2]
[338697520,1726883432362,-3347.0,0.00013293,2]
[338697521,1726883432371,-806.0,0.00013293,2]
[338697522,1726883432380,-150.0,0.00013293,2]
[338697523,1726883432390,-5867.0,0.00013293,2]
[338697524,1726883432400,-1147.0,0.00013293,2]
[338697525,1726883432409,-13490.0,0.00013293,2]
[338697526,1726883432418,-150.096,0.00013293,2]
[338697527,1726883432428,-150.0,0.00013293,2]
[338697528,1726883432437,-1080.0,0.00013293,2]
[338697529,1726883432446,-151.698,0.00013293,2]
[338697530,1726883432455,-163.327,0.00013293,2]
[338697531,1726883432464,-150.0,0.00013352,2]
[338697532,1726883432473,-357.08,0.00013394,2]
[338697533,1726883432482,-150.0,0.00013413,2]
[338697534,1726883432491,-151.0,0.00013434,2]
[338697535,1726883432500,-150.0,0.00013475,2]
[338697536,1726883432509,-150.0,0.00013537,2]
[338697537,1726883432519,-150.0,0.00013537,2]
[338697538,1726883432527,-150.0,0.00013598,2]
[338697539,1726883432536,-255.47,0.00013609,2]
[338697540,1726883432546,-178.96,0.00013621,2]
[338697541,1726883432555,-1178.05525371,0.00013622,2]
[338697542,1726883432564,-150.0,0.0001366,2]
[338697543,1726883432573,-1562.31,0.00013661,7]
[338697544,1726883432582,-1562.31,0.00013661,7]
[338697545,1726883432591,-1562.31,0.00013661,7]
[338697546,1726883432600,-1562.31,0.00013661,7]
[338697547,1726883432609,-607.36,0.00013699,2]
[338697548,1726883432619,-150.0,0.00013699,2]
[338697549,1726883432630,-2751.0,0.00013699,2]
[338697550,1726883432640,-200.0,0.00013699,2]
[338697551,1726883432649,-366.182,0.00013699,2]
[338697552,1726883432658,-1250.0,0.000137,2]
[338697553,1726883432667,-150.0,0.00013721,2]
[338697554,1726883432676,-255.0,0.00013782,2]
[338697555,1726883432686,-150.0,0.00013783,2]
[338697556,1726883432695,-150.0,0.00013783,2]
[338697557,1726883432704,-150.0,0.00013844,2]
[338697558,1726883432713,-420.0,0.00013871,2]
[338697559,1726883432722,-2000.0,0.000139,2]
[338697560,1726883432731,-200.0,0.000139,2]
[338697561,1726883432740,-500.0,0.00013904,2]
[338697562,1726883432748,-150.0,0.00013906,2]
[338697563,1726883432757,-237.86,0.00013912,2]
[338697564,1726883432766,-1562.31,0.00013934,7]
[338697565,1726883432775,-1562.31,0.00013934,7]
[338697566,1726883432784,-1243.5595,0.00013958,2]
[338697567,1726883432793,-150.0,0.00013967,2]
[338697568,1726883432803,-847.045064,0.00013973,2]
[338697569,1726883432812,-1200.0,0.00014,2]
[338697570,1726883432821,-359.0,0.00014,2]
[338697571,1726883432830,-1000.0,0.00014,2]
[338697572,1726883432839,-227.0,0.00014,2]
[338697573,1726883432847,-150.0,0.00014029,2]
[338697574,1726883432857,-150.0,0.00014029,2]
[338697575,1726883432866,-500.0,0.00014058,2]
[338697576,1726883432878,-500.0,0.00014058,2]
[338697577,1726883432887,-500.0,0.00014058,2]
[338697578,1726883432896,-500.0,0.00014058,2]
[338697579,1726883432905,-500.0,0.00014058,2]
[338697580,1726883432914,-500.0,0.00014058,2]
[338697581,1726883432923,-500.0,0.00014058,2]
[338697582,1726883432932,-500.0,0.00014058,2]
[338697583,1726883432941,-500.0,0.00014058,2]
[338697584,1726883432951,-500.0,0.00014058,2]
[338697585,1726883432960,-500.0,0.00014058,2]
[338697586,1726883432969,-500.0,0.00014058,2]
[338697587,1726883432979,-456.54,0.00014058,2]
[338697588,1726883432988,-150.0,0.00014059,2]
[338697589,1726883432998,-1000.0,0.0001407,2]
[338697590,1726883433009,-150.0,0.0001409,2]
[338697591,1726883433021,-257.16,0.0001411,6]
[338697592,1726883433031,-150.0,0.00014152,2]
[338697593,1726883433042,-500.0,0.0001417,2]
[338697594,1726883433051,-2000.0,0.0001417,2]
[338697595,1726883433061,-500.0,0.0001417,2]
[338697596,1726883433070,-200.0,0.0001417,2]
[338697597,1726883433079,-1562.31,0.00014208,7]
[338697598,1726883433089,-1562.31,0.00014208,7]
[338697599,1726883433098,-150.0,0.00014213,2]
[338697600,1726883433107,-158.78,0.00014254,2]
[338697601,1726883433116,-150.0,0.00014275,2]
[338697602,1726883433127,-150.0,0.00014275,2]
[338697603,1726883433136,-150.0,0.00014336,2]